bitfinex-derivatives/quotes_BTCF0:USTF0_20240907
["timestamp","ask_amount","ask_price","bid_price","bid_amount"]
[1725709177830,0.12264374,54434.0,54429.0,0.091876]
[1725709178229,0.10087968,54433.0,54429.0,0.091876]
[1725709178539,0.09187,54433.0,54429.0,0.091876]
[1725709179225,0.09187,54433.0,54430.0,0.091874]
[1725709179937,0.091871,54432.0,54430.0,0.091874]
[1725709180235,0.19,54431.0,54427.0,0.091879]
[1725709180434,0.281878,54428.0,54425.0,0.09011882]
[1725709180737,0.091878,54429.0,54425.0,0.09011882]
[1725709181123,0.091874,54431.0,54428.0,0.091876]
[1725709181435,0.22157939,54432.0,54429.0,0.3104545]
[1725709181733,0.22157939,54432.0,54430.0,0.3104545]
[1725709182028,0.31345039,54432.0,54431.0,0.3104545]
[1725709182424,0.86461039,54432.0,54431.0,0.3104545]
[1725709182929,0.31345039,54432.0,54431.0,0.3104545]
[1725709183429,0.31345039,54432.0,54431.0,0.51129577]
[1725709183933,0.16634761,54432.0,54431.0,0.51129577]
[1725709184430,0.16634761,54432.0,54431.0,0.74254595]
[1725709185727,0.16634761,54432.0,54431.0,0.92469849]
[1725709186034,0.10199014,54432.0,54431.0,0.74254595]
[1725709186235,0.10199014,54432.0,54431.0,0.7425473]
[1725709187326,0.10199014,54432.0,54431.0,1.21977861]
[1725709188337,0.10199014,54432.0,54431.0,1.01941081]
[1725709188738,0.10199014,54432.0,54431.0,1.22096757]
[1725709189432,0.10199014,54432.0,54427.0,0.091879]
[1725709189433,0.091876,54430.0,54427.0,0.091879]
[1725709189636,0.091876,54430.0,54428.0,0.091877]
[1725709191439,0.091878,54428.0,54425.0,0.091883]
[1725709191639,0.091878,54428.0,54426.0,0.09188]
[1725709191843,0.19,54429.0,54422.0,0.091887]
[1725709192035,0.19,54423.0,54422.0,0.091887]
[1725709193530,0.091878,54428.0,54419.0,0.19]
[1725709193738,0.091878,54428.0,54420.0,0.0488]
[1725709193938,0.091878,54428.0,54424.0,0.091883]
[1725709194344,0.091881,54426.0,54424.0,0.091883]
[1725709195240,0.091885,54424.0,54421.0,0.091888]
[1725709195540,0.091885,54424.0,54420.0,0.0488]
[1725709195741,0.091885,54424.0,54423.0,0.091886]
[1725709196242,0.19,54427.0,54420.0,0.140691]
[1725709196243,0.091887,54423.0,54420.0,0.140691]
[1725709196443,0.091867,54435.0,54420.0,0.140691]
[1725709196444,0.091876,54429.0,54422.0,0.20155676]
[1725709196737,0.091879,54427.0,54426.0,0.1652228]
[1725709196940,0.139979,54428.0,54426.0,0.74263834]
[1725709197236,0.139979,54428.0,54424.0,0.1652228]
[1725709197237,0.09400275,54428.0,54427.0,0.65824258]
[1725709197437,0.09400275,54428.0,54427.0,0.5113598]
[1725709197645,0.73708075,54428.0,54427.0,0.3104939]
[1725709198039,1.33708075,54428.0,54427.0,0.3104939]
[1725709199542,1.52708075,54428.0,54427.0,0.3104939]
[1725709199737,1.52708075,54428.0,54427.0,0.14004063]
[1725709199935,1.61895875,54428.0,54427.0,0.25023873]
[1725709200248,0.091896,54417.0,54416.0,0.12856542]
[1725709200440,0.091896,54417.0,54416.0,0.17046555]
[1725709200441,0.19,54417.0,54416.0,0.17046555]
[1725709200739,0.281896,54417.0,54416.0,0.17046708]
[1725709201143,0.281896,54417.0,54411.0,0.0462]
[1725709201336,0.281903,54413.0,54412.0,0.29906203]
[1725709201734,0.281903,54413.0,54412.0,0.17046772]
[1725709201735,0.091903,54413.0,54412.0,0.17046772]
[1725709202346,0.00912014,54414.0,54412.0,0.17046772]
[1725709202547,0.091899,54416.0,54413.0,0.17046772]
[1725709202741,0.12503605,54416.0,54414.0,0.17046772]
[1725709202942,0.12503605,54416.0,54410.0,0.2364]
[1725709203146,0.12503605,54416.0,54411.0,0.17046652]
[1725709203349,0.12503605,54416.0,54415.0,0.11011911]
[1725709203646,0.03313705,54416.0,54415.0,0.0919]
[1725709203850,0.281892,54420.0,54416.0,0.091897]
[1725709204147,0.01724178,54419.0,54417.0,0.11011781]
[1725709204341,0.01724178,54419.0,54416.0,0.091897]
[1725709206543,0.10913578,54419.0,54416.0,0.091897]
[1725709206747,0.10913578,54419.0,54417.0,0.091896]
[1725709206748,0.091894,54419.0,54417.0,0.091896]
[1725709206946,0.091895,54418.0,54417.0,0.091896]
[1725709208940,0.03318339,54420.0,54413.0,0.19]
[1725709209146,0.09189,54421.0,54419.0,0.091893]
[1725709209342,0.091891,54420.0,54419.0,0.091893]
[1725709210356,0.12579337,54424.0,54423.0,0.091886]
[1725709210543,0.091885,54424.0,54423.0,0.091886]
[1725709211153,0.03282587,54428.0,54427.0,0.091879]
[1725709211359,0.091877,54429.0,54427.0,0.091879]
[1725709211751,0.091877,54429.0,54428.0,0.0498]
[1725709212756,0.12452833,54429.0,54428.0,0.0498]
[1725709213755,0.3265,54438.0,54428.0,0.2398]
[1725709214054,0.091869,54433.0,54428.0,0.331677]
[1725709214255,0.091871,54432.0,54429.0,0.091876]
[1725709216757,0.12578668,54432.0,54429.0,0.091876]
[1725709217354,0.03391568,54432.0,54430.0,0.091873]
[1725709217553,0.19,54434.0,54430.0,0.091873]
[1725709217753,0.281868,54434.0,54430.0,0.091873]
[1725709218252,0.01723683,54433.0,54430.0,0.091873]
[1725709219551,0.05639315,54432.0,54430.0,0.091873]
[1725709219752,0.05639315,54431.0,54430.0,0.091873]
[1725709221660,0.05639315,54431.0,54430.0,0.281873]
[1725709222563,0.091863,54437.0,54436.0,0.091864]
[1725709222754,0.14824646,54437.0,54436.0,0.091864]
[1725709224158,0.05638346,54437.0,54436.0,0.091864]
[1725709224358,0.05638346,54437.0,54436.0,0.281864]
[1725709226468,0.03253413,54442.0,54441.0,0.091856]
[1725709226670,0.091853,54443.0,54441.0,0.091856]
[1725709226963,0.12494971,54443.0,54442.0,0.091854]
[1725709228259,0.091843,54449.0,54440.0,0.19]
[1725709228557,0.19,54453.0,54445.0,0.091848]
[1725709228558,0.091844,54448.0,54445.0,0.091848]
[1725709229159,0.091846,54447.0,54445.0,0.091848]
[1725709229666,0.091846,54447.0,54444.0,0.19]
[1725709229667,0.091846,54447.0,54446.0,0.091847]
[1725709231262,0.0416589,54453.0,54449.0,0.091842]
[1725709231458,0.091839,54451.0,54450.0,0.091839]
[1725709231769,0.091832,54456.0,54454.0,0.091834]
[1725709231770,0.091832,54455.0,54454.0,0.091834]
[1725709234874,0.12547806,54455.0,54454.0,0.091834]
[1725709241570,0.18184679,54455.0,54454.0,0.091834]
[1725709243873,0.091834,54454.0,54450.0,0.091839]
[1725709244072,0.05636873,54453.0,54451.0,0.091838]
[1725709244279,0.05637253,54452.0,54451.0,0.091838]
[1725709244471,0.24637253,54452.0,54441.0,0.0453]
[1725709244672,0.091843,54449.0,54441.0,0.0453]
[1725709244972,0.05637253,54448.0,54441.0,0.0453]
[1725709245777,0.05637253,54448.0,54447.0,0.091846]
[1725709249174,0.183687,54449.0,54447.0,0.091846]
[1725709249372,0.05637529,54448.0,54447.0,0.091846]
[1725709249574,0.091843,54449.0,54447.0,0.091846]
[1725709250179,0.12470736,54449.0,54447.0,0.091846]
[1725709254782,0.12470736,54449.0,54448.0,0.091844]
[1725709260282,0.12470736,54449.0,54448.0,0.16517839]
[1725709260883,0.12470736,54449.0,54448.0,0.07333439]
[1725709261078,1.46566636,54449.0,54443.0,0.07334394]
[1725709261289,0.19,54445.0,54440.0,0.07334394]
[1725709261490,0.598,54448.0,54436.0,0.07334394]
[1725709261491,0.091863,54437.0,54436.0,0.07334394]
[1725709261795,0.091864,54436.0,54435.0,0.07334394]
[1725709262382,0.091864,54436.0,54433.0,0.07334394]
[1725709264287,0.091864,54436.0,54432.0,0.16521494]
[1725709264697,0.091864,54436.0,54432.0,0.091871]
[1725709266791,0.19,54440.0,54428.0,0.19]
[1725709267089,0.091866,54435.0,54430.0,0.091874]
[1725709267289,0.19,54440.0,54430.0,0.091874]
[1725709267290,0.091868,54434.0,54430.0,0.091874]
[1725709268297,0.22370853,54440.0,54424.0,0.1443]
[1725709268298,0.28187,54433.0,54424.0,0.1443]
[1725709268492,0.091878,54428.0,54424.0,0.1443]
[1725709268996,0.091878,54428.0,54425.0,0.091881]
[1725709269798,0.091878,54428.0,54427.0,0.091879]
[1725709269991,0.091872,54432.0,54427.0,0.281879]
[1725709270191,0.091873,54431.0,54427.0,0.281879]
[1725709270499,0.091875,54430.0,54427.0,0.281879]
[1725709271087,0.091876,54429.0,54427.0,0.281879]
[1725709271489,0.09187,54433.0,54427.0,0.19]
[1725709271691,0.03284481,54436.0,54431.0,0.19]
[1725709271894,0.09186,54439.0,54431.0,0.19]
[1725709272093,0.09186,54439.0,54431.0,0.24485466]
[1725709272897,0.09186,54439.0,54431.0,0.19]
[1725709273094,0.12530401,54439.0,54431.0,0.19]
[1725709273400,0.12530401,54439.0,54431.0,0.281872]
[1725709273792,0.12530401,54439.0,54431.0,0.33672666]
[1725709274488,0.091867,54435.0,54432.0,0.091871]
[1725709274697,0.091867,54435.0,54432.0,0.14672566]
[1725709275402,0.03344401,54439.0,54432.0,0.091871]
[1725709275403,0.091868,54434.0,54432.0,0.091871]
[1725709277201,0.091869,54433.0,54432.0,0.091871]
[1725709277592,0.091869,54433.0,54431.0,0.19]
[1725709277593,0.091873,54431.0,54429.0,0.05485466]
[1725709277988,0.091873,54431.0,54429.0,0.14673066]
[1725709278395,0.091873,54431.0,54429.0,0.091876]
[1725709278695,0.091873,54431.0,54429.0,0.14673066]
[1725709279302,0.091873,54431.0,54429.0,0.091876]
[1725709281303,0.03239809,54433.0,54426.0,0.091881]
[1725709281600,0.091877,54429.0,54426.0,0.091881]
[1725709281904,0.091878,54428.0,54426.0,0.091881]
[1725709282400,0.19,54433.0,54426.0,0.091881]
[1725709282799,0.091878,54428.0,54426.0,0.091881]
[1725709283000,0.091871,54432.0,54424.0,0.00092]
[1725709283204,0.091879,54428.0,54420.0,0.19]
[1725709283396,0.09188,54427.0,54424.0,0.091883]
[1725709283999,0.19,54430.0,54424.0,0.091883]
[1725709284204,0.091882,54426.0,54424.0,0.091883]
[1725709284392,0.091887,54423.0,54420.0,0.09189]
[1725709284902,0.091888,54422.0,54420.0,0.09189]
[1725709285804,0.09189,54421.0,54416.0,0.0947]
[1725709286108,0.19,54417.0,54411.0,0.137106]
[1725709286701,0.281896,54417.0,54416.0,0.05498073]
[1725709287301,0.091896,54417.0,54416.0,0.05498073]
[1725709287503,0.091896,54417.0,54414.0,0.07334394]
[1725709288307,0.091896,54417.0,54416.0,0.05497046]
[1725709288508,0.091896,54417.0,54415.0,0.07334394]
[1725709289095,0.091896,54417.0,54414.0,0.091901]
[1725709289096,0.04591983,54417.0,54414.0,0.091901]
[1725709289406,0.04591983,54417.0,54415.0,0.0733197]
[1725709289599,0.04591983,54417.0,54414.0,0.091901]
[1725709289600,0.04591983,54417.0,54416.0,0.0733197]
[1725709290203,0.04591983,54417.0,54415.0,0.0733197]
[1725709291006,0.04591983,54417.0,54416.0,0.0733197]
[1725709291407,0.04591983,54417.0,54415.0,0.0733197]
[1725709291711,0.091898,54416.0,54415.0,0.0733197]
[1725709293612,0.091898,54416.0,54414.0,0.1652207]
[1725709293918,0.091898,54416.0,54415.0,0.0733197]
[1725709294211,0.091898,54416.0,54414.0,0.1652207]
[1725709294623,0.091898,54416.0,54414.0,0.091901]
[1725709295114,0.091902,54414.0,54411.0,0.137106]
[1725709295513,0.091902,54414.0,54412.0,0.091904]
[1725709296510,0.091903,54413.0,54412.0,0.091904]
[1725709303016,0.091903,54413.0,54412.0,0.16520113]
[1725709303416,0.091903,54413.0,54412.0,0.091904]
[1725709304822,0.091903,54413.0,54412.0,0.16521143]
[1725709305019,0.091903,54413.0,54412.0,0.16521173]
[1725709305212,0.191903,54413.0,54412.0,0.091904]
[1725709305520,0.191903,54413.0,54412.0,0.16522316]
[1725709305916,0.191903,54413.0,54412.0,0.07331916]
[1725709307025,0.091906,54411.0,54410.0,0.07331916]
[1725709307223,0.191906,54411.0,54410.0,0.07331916]
[1725709307926,0.091906,54411.0,54410.0,0.16522716]
[1725709308219,0.19,54416.0,54404.0,0.0483]
[1725709308220,0.091903,54413.0,54409.0,0.19]
[1725709308423,0.091903,54413.0,54412.0,0.07334837]
[1725709308929,0.091903,54413.0,54412.0,0.07334644]
[1725709309428,0.091903,54413.0,54411.0,0.091905]
[1725709310321,0.091903,54413.0,54412.0,0.091905]
[1725709312233,0.2819,54415.0,54407.0,0.091912]
[1725709312528,0.19,54410.0,54407.0,0.091912]
[1725709313321,0.091912,54408.0,54407.0,0.091912]
[1725709314125,0.19,54408.0,54404.0,0.140218]
[1725709314332,0.091915,54406.0,54404.0,0.140218]
[1725709314719,0.091915,54406.0,54405.0,0.091917]
[1725709315332,0.0919,54415.0,54402.0,0.2355]
[1725709315637,0.091907,54411.0,54402.0,0.2355]
[1725709316023,0.091907,54411.0,54408.0,0.091911]
[1725709316423,0.19,54413.0,54408.0,0.091911]
[1725709316630,0.19,54413.0,54410.0,0.07336082]
[1725709317331,0.19,54413.0,54410.0,0.07186082]
[1725709317833,0.091906,54411.0,54410.0,0.07186082]
[1725709318440,0.19,54413.0,54408.0,0.091911]
[1725709318835,0.19,54413.0,54410.0,0.07343073]
[1725709319532,0.281903,54413.0,54412.0,0.05507369]
[1725709320042,0.281903,54413.0,54410.0,0.07343073]
[1725709320043,0.091906,54411.0,54410.0,0.07343073]
[1725709321336,0.091906,54411.0,54410.0,0.07342739]
[1725709321542,0.091906,54411.0,54408.0,0.091911]
[1725709322136,0.091908,54410.0,54408.0,0.091911]
[1725709324043,0.091908,54410.0,54409.0,0.09191]
[1725709324236,0.19,54413.0,54409.0,0.09178842]
[1725709324237,0.091904,54413.0,54409.0,0.09178842]
[1725709324442,0.03307989,54415.0,54414.0,0.091901]
[1725709324640,0.091899,54416.0,54415.0,0.0919]
[1725709325143,0.124832,54416.0,54415.0,0.16532213]
[1725709325340,0.124832,54416.0,54415.0,0.0919]
[1725709325542,0.124832,54416.0,54415.0,0.16532213]
[1725709328045,0.032933,54416.0,54415.0,0.16532213]
[1725709328246,0.091895,54418.0,54416.0,0.091898]
[1725709328444,0.091895,54418.0,54417.0,0.05508061]
[1725709328637,0.11965946,54418.0,54417.0,0.05508061]
[1725709329944,0.091895,54418.0,54417.0,0.05508061]
[1725709330137,0.091895,54418.0,54416.0,0.091898]
[1725709330538,0.091896,54417.0,54416.0,0.07342213]
[1725709330734,0.091896,54417.0,54412.0,0.09178842]
[1725709330735,0.091898,54416.0,54415.0,0.07342213]
[1725709330937,0.21734725,54416.0,54410.0,0.02089004]
[1725709331143,0.091912,54408.0,54407.0,0.07345289]
[1725709331450,0.281912,54408.0,54405.0,0.07345289]
[1725709331653,0.281912,54408.0,54402.0,0.13728842]
[1725709331654,0.281906,54412.0,54407.0,0.07345289]
[1725709331848,0.373812,54412.0,54402.0,0.2355]
[1725709332038,0.091907,54411.0,54406.0,0.091913]
[1725709332349,0.2375,54415.0,54408.0,0.091911]
[1725709332551,0.091905,54412.0,54402.0,0.2355]
[1725709332747,0.091905,54412.0,54407.0,0.091912]
[1725709333946,0.091905,54412.0,54402.0,0.2355]
[1725709333947,0.091907,54411.0,54409.0,0.09191]
[1725709336854,0.091908,54410.0,54409.0,0.09191]
[1725709338053,0.09191,54409.0,54406.0,0.091915]
[1725709338553,0.09191,54409.0,54407.0,0.091913]
[1725709339738,0.09191,54409.0,54407.0,0.18370142]
[1725709341156,0.09191,54409.0,54408.0,0.09178842]
[1725709343657,0.1246008,54409.0,54408.0,0.23185471]
[1725709344060,0.1246008,54409.0,54408.0,0.09178842]
[1725709344758,0.1246008,54409.0,54408.0,0.23185507]
[1725709346563,0.1246008,54409.0,54408.0,0.09178842]
[1725709346858,0.091912,54408.0,54407.0,0.18370142]
[1725709347058,0.091912,54408.0,54407.0,0.32376881]
[1725709347360,0.091912,54408.0,54407.0,0.23185581]
[1725709347858,0.091912,54408.0,54407.0,0.23190473]
[1725709348049,0.281912,54408.0,54407.0,0.23190473]
[1725709348556,0.373824,54408.0,54407.0,0.23190473]
[1725709348762,0.373824,54408.0,54398.0,0.12850379]
[1725709348763,0.091913,54407.0,54405.0,0.07349032]
[1725709349060,0.183836,54404.0,54403.0,0.07349032]
[1725709349259,0.091922,54402.0,54401.0,0.07349032]
[1725709349559,0.091927,54399.0,54398.0,0.09183734]
[1725709349751,0.091927,54399.0,54398.0,0.2319299]
[1725709350149,0.091927,54399.0,54397.0,0.09183734]
[1725709350847,0.12488929,54399.0,54397.0,0.09183734]
[1725709351047,0.091928,54398.0,54397.0,0.09183734]
[1725709351248,0.04593574,54398.0,54397.0,0.23192978]
[1725709351963,0.04593574,54398.0,54397.0,0.09183734]
[1725709352259,0.19,54399.0,54395.0,0.09183734]
[1725709352452,0.00922158,54398.0,54395.0,0.09183734]
[1725709352757,0.281932,54396.0,54395.0,0.09183734]
[1725709353060,0.19941841,54396.0,54394.0,0.0734231]
[1725709353259,0.19,54395.0,54392.0,0.0734231]
[1725709353468,0.19,54395.0,54389.0,0.09183734]
[1725709353469,0.091942,54390.0,54389.0,0.0734231]
[1725709353755,0.19,54390.0,54387.0,0.0734231]
[1725709353954,0.091949,54386.0,54385.0,0.0734231]
[1725709354163,0.091954,54383.0,54382.0,0.1185231]
[1725709354352,0.091954,54383.0,54382.0,0.0451]
[1725709355857,0.091942,54390.0,54382.0,0.2351]
[1725709356156,0.19,54390.0,54382.0,0.137055]
[1725709356453,0.091947,54387.0,54382.0,0.137055]
[1725709357460,0.091947,54387.0,54383.0,0.091954]
[1725709357863,0.091947,54387.0,54384.0,0.281952]
[1725709358045,0.091947,54387.0,54384.0,0.19]
[1725709358251,0.091949,54386.0,54385.0,0.09195]
[1725709361961,0.091952,54385.0,54382.0,0.0451]
[1725709362154,0.091952,54385.0,54382.0,0.137055]
[1725709363260,0.091952,54384.0,54382.0,0.137055]
[1725709365063,0.091954,54383.0,54382.0,0.137055]
[1725709367561,0.091954,54383.0,54382.0,0.0451]
[1725709367856,0.183908,54383.0,54382.0,0.0451]
[1725709368174,0.091962,54378.0,54377.0,0.0734231]
[1725709368364,0.091971,54373.0,54372.0,0.0734231]
[1725709368664,0.091972,54372.0,54371.0,0.091974]
[1725709369065,0.091975,54371.0,54370.0,0.091976]
[1725709369260,0.091977,54369.0,54368.0,0.0478]
[1725709369461,0.19,54373.0,54368.0,0.0478]
[1725709369784,0.091988,54363.0,54352.0,0.07318912]
[1725709369965,0.091998,54357.0,54351.0,0.0958]
[1725709370464,0.091998,54357.0,54351.0,0.0459]
[1725709370857,0.091991,54362.0,54355.0,0.19]
[1725709371063,0.091991,54362.0,54356.0,0.0481]
[1725709371964,0.091982,54367.0,54356.0,0.140099]
[1725709372271,0.091982,54367.0,54358.0,0.19]
[1725709372468,0.091982,54367.0,54363.0,0.19]
[1725709372772,0.12576477,54368.0,54364.0,0.0936]
[1725709373073,0.09198,54368.0,54364.0,0.0936]
[1725709373371,0.091981,54367.0,54364.0,0.0464]
[1725709375071,0.0913,54376.0,54366.0,0.19]
[1725709375269,0.0457,54380.0,54367.0,0.046]
[1725709375670,0.19,54377.0,54368.0,0.091979]
[1725709375867,0.091972,54372.0,54367.0,0.046]
[1725709376563,0.19,54374.0,54367.0,0.046]
[1725709376764,0.091979,54368.0,54367.0,0.046]
[1725709380376,0.19,54377.0,54367.0,0.137981]
[1725709380572,0.19,54377.0,54368.0,0.091978]
[1725709380573,0.091973,54372.0,54368.0,0.091978]
[1725709380772,0.19,54377.0,54368.0,0.091978]
[1725709381075,0.091976,54370.0,54368.0,0.091978]
[1725709382078,0.091976,54370.0,54368.0,0.16516712]
[1725709382280,0.091976,54370.0,54369.0,0.091977]
[1725709382576,0.091976,54370.0,54369.0,0.16516612]
[1725709382963,0.091946,54388.0,54369.0,1.4519061]
[1725709383169,0.091962,54379.0,54376.0,0.26322288]
[1725709383372,0.091962,54379.0,54378.0,0.07322288]
[1725709383679,0.091957,54382.0,54379.0,0.09196]
[1725709383877,0.091957,54382.0,54379.0,0.14056]
[1725709384180,0.51742,54390.0,54381.0,0.091957]
[1725709384373,0.19,54390.0,54381.0,0.091957]
[1725709384967,0.425337,54394.0,54384.0,0.091951]
[1725709385178,0.091944,54389.0,54384.0,0.091951]
[1725709385373,0.425337,54394.0,54388.0,0.091945]
[1725709385374,0.09662,54394.0,54388.0,0.091945]
[1725709385575,0.0957,54394.0,54388.0,0.091945]
[1725709385972,0.091942,54391.0,54389.0,0.091943]
[1725709386173,0.091934,54395.0,54390.0,0.091942]
[1725709386368,0.091934,54395.0,54387.0,0.19]
[1725709386369,0.091934,54395.0,54391.0,0.09194]
[1725709387370,0.19,54395.0,54387.0,0.091947]
[1725709387872,0.19,54390.0,54387.0,0.091947]
[1725709388175,0.281943,54390.0,54387.0,0.091947]
[1725709388374,0.091943,54390.0,54387.0,0.091947]
[1725709388675,0.19,54394.0,54385.0,0.046]
[1725709388676,0.091944,54389.0,54385.0,0.046]
[1725709389473,0.19,54387.0,54380.0,0.0454]
[1725709389680,0.091954,54383.0,54380.0,0.0454]
[1725709389881,0.091957,54382.0,54380.0,0.0454]
[1725709390187,0.091957,54381.0,54380.0,0.0454]
[1725709390987,0.091957,54381.0,54378.0,0.091962]
[1725709393384,0.091959,54380.0,54378.0,0.091962]
[1725709393588,0.091961,54379.0,54378.0,0.091962]
[1725709393988,0.091961,54379.0,54376.0,0.19]
[1725709394180,0.091961,54379.0,54376.0,0.281965]
[1725709395185,0.091961,54379.0,54377.0,0.091963]
[1725709395482,0.091961,54379.0,54376.0,0.19]
[1725709396881,0.091961,54379.0,54378.0,0.091962]
[1725709397080,0.091957,54381.0,54380.0,0.091958]
[1725709397284,0.091964,54377.0,54376.0,0.281965]
[1725709398083,0.091964,54377.0,54376.0,0.091965]
[1725709398286,0.091964,54377.0,54359.0,0.07322288]
[1725709398287,0.31560037,54377.0,54359.0,0.07322288]
[1725709398580,0.09198,54368.0,54366.0,0.091982]
[1725709398786,0.091981,54367.0,54366.0,0.091982]
[1725709399000,0.04596652,54367.0,54366.0,0.091982]
[1725709399494,0.091978,54369.0,54367.0,0.09198]
[1725709399808,0.091978,54369.0,54368.0,0.07327562]
[1725709400282,0.091978,54369.0,54368.0,0.16525462]
[1725709401599,0.091978,54369.0,54368.0,0.091979]
[1725709406094,0.12548624,54369.0,54368.0,0.091979]
[1725709406294,0.091979,54368.0,54367.0,0.09159452]
[1725709406493,0.091979,54368.0,54367.0,0.23175398]
[1725709406792,0.091979,54368.0,54367.0,0.09159452]
[1725709406991,0.091979,54368.0,54366.0,0.091983]
[1725709407188,0.091981,54367.0,54366.0,0.091983]
[1725709408196,0.03283238,54373.0,54364.0,0.19]
[1725709408399,0.091959,54380.0,54379.0,0.091958]
[1725709408605,0.091961,54379.0,54378.0,0.19]
[1725709409299,0.091962,54378.0,54377.0,0.091964]
[1725709410000,0.091966,54376.0,54375.0,0.19]
[1725709411602,0.091966,54376.0,54375.0,0.091967]
[1725709413998,0.091966,54376.0,54375.0,0.16531506]
[1725709414205,0.12484564,54376.0,54375.0,0.16531506]
[1725709414807,0.12484564,54376.0,54375.0,0.091967]
[1725709415604,0.091966,54376.0,54375.0,0.091967]
[1725709416799,0.091966,54376.0,54375.0,0.16535355]
[1725709416995,0.091966,54376.0,54375.0,0.091967]
[1725709417195,0.091966,54376.0,54375.0,0.16535537]
[1725709420003,0.183933,54376.0,54375.0,0.07338837]
[1725709420207,0.091966,54376.0,54373.0,0.07342873]
[1725709420503,0.091969,54374.0,54373.0,0.07342873]
[1725709422096,0.091976,54370.0,54369.0,0.091977]
[1725709423101,0.091979,54368.0,54367.0,0.19]
[1725709423502,0.091973,54372.0,54369.0,0.091976]
[1725709423702,0.091973,54372.0,54367.0,0.19]
[1725709423911,0.091967,54375.0,54370.0,0.091975]
[1725709424203,0.091974,54371.0,54370.0,0.091975]
[1725709424995,0.091974,54371.0,54367.0,0.19]
[1725709424996,0.091979,54368.0,54367.0,0.091981]
[1725709429003,0.091979,54368.0,54367.0,0.40273452]
[1725709429407,0.0495,54372.0,54367.0,0.31075352]
[1725709429607,0.0495,54372.0,54368.0,0.14015773]
[1725709429918,0.091976,54370.0,54369.0,0.25040386]
[1725709430704,0.091976,54370.0,54369.0,0.31073856]
[1725709431703,0.091976,54370.0,54369.0,0.31073417]
[1725709432010,0.091976,54370.0,54369.0,0.40271117]
[1725709434313,0.091971,54373.0,54372.0,0.091972]
[1725709434509,0.091971,54373.0,54372.0,0.232121]
[1725709437205,0.091971,54373.0,54372.0,0.091972]
[1725709437608,0.12439394,54374.0,54373.0,0.091971]
[1725709438513,0.091982,54367.0,54366.0,0.091982]
[1725709444116,0.04596827,54367.0,54366.0,0.40273574]
[1725709445311,0.07987197,54367.0,54366.0,0.40273574]
[1725709448417,0.07987197,54367.0,54366.0,0.59273574]
[1725709448923,0.0339037,54367.0,54366.0,0.59273574]
[1725709449109,0.091976,54370.0,54369.0,0.091977]
[1725709449420,0.091976,54370.0,54369.0,0.40273074]
[1725709451024,0.09197,54375.0,54374.0,0.091966]
[1725709451220,0.09197,54375.0,54374.0,0.53248521]
[1725709451418,0.09197,54375.0,54374.0,0.59270119]
[1725709451819,0.09197,54375.0,54374.0,0.59269888]
[1725709452332,0.09197,54375.0,54374.0,0.281966]
[1725709453418,0.09197,54375.0,54374.0,0.091966]
[1725709453628,0.0332759,54377.0,54376.0,0.091966]
[1725709453817,0.0335834,54377.0,54376.0,0.091966]
[1725709454124,0.1255474,54377.0,54376.0,0.091966]
[1725709457529,0.091964,54377.0,54376.0,0.091966]
[1725709459216,0.03264501,54380.0,54379.0,0.091961]
[1725709459421,0.137057,54381.0,54380.0,0.091959]
[1725709459631,0.091957,54381.0,54380.0,0.091959]
[1725709461024,0.12467527,54381.0,54380.0,0.091959]
[1725709461232,0.091962,54378.0,54377.0,0.283924]
[1725709461434,0.091962,54378.0,54377.0,0.42405736]
[1725709462036,0.091962,54378.0,54377.0,0.32405736]
[1725709462333,0.091962,54378.0,54377.0,0.183924]
[1725709462735,0.091962,54378.0,54377.0,0.32405742]
[1725709463124,0.091962,54378.0,54377.0,0.09196]
[1725709463325,0.091962,54378.0,54374.0,0.09196]
[1725709463726,0.091962,54378.0,54377.0,0.07350937]
[1725709464840,0.091962,54378.0,54377.0,0.16547337]
[1725709465528,0.12589434,54378.0,54377.0,0.16547337]
[1725709466131,0.12589434,54378.0,54377.0,0.16547124]
[1725709467356,0.12589434,54378.0,54377.0,0.14709397]
[1725709468233,0.091962,54378.0,54377.0,0.091964]
[1725709470531,0.12616917,54378.0,54377.0,0.091964]
[1725709471335,0.091964,54377.0,54376.0,0.0551335]
[1725709471542,0.12617117,54377.0,54376.0,0.0551335]
[1725709472431,0.091964,54377.0,54376.0,0.0551335]
[1725709473437,0.091966,54376.0,54375.0,0.16547424]
[1725709474143,0.091966,54376.0,54375.0,0.091967]
[1725709476941,0.19,54377.0,54368.0,0.0469]
[1725709477144,0.091977,54369.0,54368.0,0.0469]
[1725709478434,0.091981,54367.0,54365.0,0.0956]
[1725709479550,0.091983,54366.0,54365.0,0.0956]
[1725709482139,0.091975,54371.0,54365.0,0.40635667]
[1725709482340,0.091976,54370.0,54369.0,0.11029853]
[1725709482544,0.091976,54370.0,54369.0,0.25045768]
[1725709482749,0.091976,54370.0,54369.0,0.14015915]
[1725709483138,0.091976,54370.0,54369.0,0.25045]
[1725709486246,0.091976,54370.0,54369.0,0.29625]
[1725709487754,0.091976,54370.0,54369.0,0.18595915]
[1725709488143,0.091976,54370.0,54369.0,0.27793615]
[1725709489253,0.04596364,54370.0,54369.0,0.27793615]
[1725709490955,0.04596364,54370.0,54369.0,0.27793195]
[1725709495952,0.04596364,54370.0,54369.0,0.27793119]
[1725709496351,0.04596364,54370.0,54369.0,0.28595419]
[1725709496663,0.04596364,54370.0,54369.0,0.14015419]
[1725709497153,0.09198,54368.0,54366.0,0.191982]
[1725709497672,0.09198,54368.0,54366.0,0.091982]
[1725709499153,0.091981,54367.0,54366.0,0.091982]
[1725709499361,0.091981,54367.0,54365.0,0.0956]
[1725709499362,0.091983,54366.0,54365.0,0.0956]
[1725709499956,0.091983,54366.0,54365.0,0.187584]
[1725709500861,0.091983,54366.0,54365.0,0.287584]
[1725709502065,0.12508717,54366.0,54365.0,0.287584]